[Event "MCR zen 2022"]
[Site "Hotel Opera, Jaroměřice nad Rokytnou, Czech Republic"]
[Date "????.??.??"]
[Round "1.1"]
[White "Sikorova, Olga"]
[Black "Pilsova, Karolina"]
[Result "1/2-1/2"]
[TimeControl "90 min/40 moves + 30 min + 30s/move"]
[WhiteElo "2173"]
[BlackElo "2229"]

1. Nf3 {[%clk 01:30:57]} {[%emt 00:00:03]} d5 {[%clk 01:30:53]} {[%emt
00:00:07]} 2. c4 {[%clk 01:31:10]} {[%emt 00:00:17]} c6 {[%clk 01:31:18]}
{[%emt 00:00:05]} 3. g3 {[%clk 01:31:18]} {[%emt 00:00:22]} Nf6 {[%clk
01:31:38]} {[%emt 00:00:09]} 4. Bg2 {[%clk 01:31:37]} {[%emt 00:00:11]} Bg4
{[%clk 01:31:51]} {[%emt 00:00:16]} 5. cxd5 {[%clk 01:31:59]} {[%emt 00:00:10]}
Bxf3 {[%clk 01:31:58]} {[%emt 00:00:23]} 6. Bxf3 {[%clk 01:32:24]} {[%emt
00:00:05]} cxd5 {[%clk 01:32:21]} {[%emt 00:00:06]} 7. O-O {[%clk 01:32:23]}
{[%emt 00:00:31]} Nc6 {[%clk 01:31:46]} {[%emt 00:01:05]} 8. Bg2 {[%clk
01:32:30]} {[%emt 00:00:23]} e6 {[%clk 01:30:45]} {[%emt 00:01:32]} 9. Nc3
{[%clk 01:32:39]} {[%emt 00:00:21]} Bc5 {[%clk 01:21:31]} {[%emt 00:09:43]} 10.
b3 {[%clk 01:28:18]} {[%emt 00:04:51]} h5 {[%clk 01:16:30]} {[%emt 00:05:31]}
11. Bb2 {[%clk 01:22:18]} {[%emt 00:06:30]} h4 {[%clk 01:13:55]} {[%emt
00:03:05]} 12. e3 {[%clk 01:09:15]} {[%emt 00:13:34]} Qe7 {[%clk 01:00:40]}
{[%emt 00:13:44]} 13. d4 {[%clk 00:53:44]} {[%emt 00:16:01]} Bb4 {[%clk
00:56:53]} {[%emt 00:04:17]} 14. a3 {[%clk 00:42:31]} {[%emt 00:11:43]} Bxc3
{[%clk 00:49:32]} {[%emt 00:07:50]} 15. Bxc3 {[%clk 00:43:00]} {[%emt
00:00:01]} Ne4 {[%clk 00:49:38]} {[%emt 00:00:24]} 16. Bxe4 {[%clk 00:36:44]}
{[%emt 00:06:46]} dxe4 {[%clk 00:49:49]} {[%emt 00:00:19]} 17. d5 {[%clk
00:36:20]} {[%emt 00:00:54]} O-O-O {[%clk 00:30:27]} {[%emt 00:19:51]} 18. Qg4
{[%clk 00:34:11]} {[%emt 00:02:39]} Rxd5 {[%clk 00:29:17]} {[%emt 00:01:40]} 19.
Qxe4 {[%clk 00:31:02]} {[%emt 00:03:40]} Qg5 {[%clk 00:24:27]} {[%emt
00:05:20]} 20. Rfc1 {[%clk 00:13:34]} {[%emt 00:17:58]} hxg3 {[%clk 00:18:23]}
{[%emt 00:06:34]} 21. hxg3 {[%clk 00:13:37]} {[%emt 00:00:27]} Qh5 {[%clk
00:09:10]} {[%emt 00:09:43]} 22. b4 {[%clk 00:09:15]} {[%emt 00:04:53]} f5
{[%clk 00:05:28]} {[%emt 00:04:11]} 23. Qg2 {[%clk 00:08:24]} {[%emt 00:01:21]}
Rhd8 {[%clk 00:02:46]} {[%emt 00:03:11]} 24. Bxg7 {[%clk 00:07:43]} {[%emt
00:01:12]} Kb8 {[%clk 00:01:58]} {[%emt 00:01:18]} 25. Bc3 {[%clk 00:03:18]}
{[%emt 00:04:54]} Qe2 {[%clk 00:01:42]} {[%emt 00:00:45]} 26. Qf1 {[%clk
00:02:04]} {[%emt 00:01:45]} Qg4 {[%clk 00:01:15]} {[%emt 00:00:56]} 27. b5
{[%clk 00:01:32]} {[%emt 00:01:02]} Ne5 {[%clk 00:00:45]} {[%emt 00:01:00]} 28.
Bxe5+ {[%clk 00:01:59]} {[%emt 00:00:03]} Rxe5 {[%clk 00:01:13]} {[%emt
00:00:02]} 29. Rc4 {[%clk 00:00:41]} {[%emt 00:01:49]} Qf3 {[%clk 00:00:59]}
{[%emt 00:00:44]} 30. Rf4 {[%clk 00:00:43]} {[%emt 00:00:27]} Qh5 {[%clk
00:01:15]} {[%emt 00:00:14]} 31. Rd4 {[%clk 00:00:48]} {[%emt 00:00:26]} Red5
{[%clk 00:00:52]} {[%emt 00:00:53]} 32. Rxd5 {[%clk 00:00:40]} {[%emt
00:00:38]} Rxd5 {[%clk 00:01:18]} {[%emt 00:00:04]} 33. a4 {[%clk 00:00:57]}
{[%emt 00:00:13]} Qf3 {[%clk 00:00:54]} {[%emt 00:00:54]} 34. Qc4 {[%clk
00:00:41]} {[%emt 00:00:46]} Rd2 {[%clk 00:00:34]} {[%emt 00:00:51]} 35. Qf4+
{[%clk 00:00:35]} {[%emt 00:00:35]} Qxf4 {[%clk 00:01:02]} {[%emt 00:00:02]} 36.
exf4 {[%clk 00:00:46]} {[%emt 00:00:19]} Kc7 {[%clk 00:01:10]} {[%emt
00:00:22]} 37. Kf1 {[%clk 00:00:40]} {[%emt 00:00:36]} Kb6 {[%clk 00:00:49]}
{[%emt 00:00:51]} 38. Re1 {[%clk 00:00:34]} {[%emt 00:00:35]} Rd6 {[%clk
00:00:56]} {[%emt 00:00:23]} 39. Rc1 {[%clk 00:00:35]} {[%emt 00:00:30]} Ka5
{[%clk 00:00:55]} {[%emt 00:00:31]} 40. Rc4 {[%clk 00:00:40]} {[%emt 00:00:25]}
Rd2 {[%clk 00:00:52]} {[%emt 00:00:33]} 41. Rc7 {[%clk 00:30:17]} {[%emt
00:00:53]} Kb6 {[%clk 00:28:55]} {[%emt 00:02:27]} 42. Re7 {[%clk 00:28:14]}
{[%emt 00:02:33]} Rd6 {[%clk 00:28:51]} {[%emt 00:00:35]} 43. f3 {[%clk
00:24:04]} {[%emt 00:04:41]} a6 {[%clk 00:27:35]} {[%emt 00:01:45]} 44. Ke2
{[%clk 00:19:21]} {[%emt 00:05:12]} axb5 {[%clk 00:26:19]} {[%emt 00:01:46]} 45.
axb5 {[%clk 00:19:49]} {[%emt 00:00:03]} Kxb5 {[%clk 00:25:51]} {[%emt
00:00:58]} 46. Rxb7+ {[%clk 00:20:17]} {[%emt 00:00:02]} Kc5 {[%clk 00:25:41]}
{[%emt 00:00:40]} 47. Rc7+ {[%clk 00:18:56]} {[%emt 00:01:52]} Kd5 {[%clk
00:24:16]} {[%emt 00:01:55]} 48. Rc2 {[%clk 00:19:15]} {[%emt 00:00:11]} Ra6
{[%clk 00:24:39]} {[%emt 00:00:06]} 49. Rd2+ {[%clk 00:19:40]} {[%emt
00:00:05]} Kc5 {[%clk 00:25:02]} {[%emt 00:00:06]} 50. g4 {[%clk 00:19:37]}
{[%emt 00:00:33]} Ra4 {[%clk 00:19:37]} {[%emt 00:05:55]} 51. Ke3 {[%clk
00:20:03]} {[%emt 00:00:04]} fxg4 {[%clk 00:18:34]} {[%emt 00:01:33]} 52. fxg4
{[%clk 00:20:07]} {[%emt 00:00:26]} e5 {[%clk 00:18:54]} {[%emt 00:00:10]} 53.
fxe5 {[%clk 00:19:56]} {[%emt 00:00:41]} Rxg4 {[%clk 00:19:13]} {[%emt
00:00:12]} 54. Kf3 {[%clk 00:20:14]} {[%emt 00:00:11]} Rh4 {[%clk 00:12:34]}
{[%emt 00:07:09]} 55. e6 {[%clk 00:18:55]} {[%emt 00:01:49]} Rh6 {[%clk
00:12:38]} {[%emt 00:00:26]} 56. Re2 {[%clk 00:06:50]} {[%emt 00:12:35]} Rh8
{[%clk 00:12:42]} {[%emt 00:00:26]} 57. Kf4 {[%clk 00:06:27]} 1/2-1/2

[Event "MCR zen 2022"]
[Site "Hotel Opera, Jaroměřice nad Rokytnou, Czech Republic"]
[Date "????.??.??"]
[Round "1.2"]
[White "Novosadova, Kristyna"]
[Black "Lhotska, Anna"]
[Result "1-0"]
[TimeControl "90 min/40 moves + 30 min + 30s/move"]
[WhiteElo "2147"]
[BlackElo "2029"]

1. e4 {[%clk 01:30:56]} {[%emt 00:00:03]} c5 {[%clk 01:30:55]} {[%emt
00:00:06]} 2. Nf3 {[%clk 01:31:20]} {[%emt 00:00:07]} d6 {[%clk 01:31:20]}
{[%emt 00:00:05]} 3. d4 {[%clk 01:31:44]} {[%emt 00:00:07]} cxd4 {[%clk
01:31:44]} {[%emt 00:00:05]} 4. Nxd4 {[%clk 01:32:09]} {[%emt 00:00:04]} Nf6
{[%clk 01:32:07]} {[%emt 00:00:07]} 5. Nc3 {[%clk 01:32:34]} {[%emt 00:00:06]}
a6 {[%clk 01:32:33]} {[%emt 00:00:04]} 6. Bg5 {[%clk 01:32:56]} {[%emt
00:00:07]} Nbd7 {[%clk 01:32:57]} {[%emt 00:00:06]} 7. f4 {[%clk 01:33:18]}
{[%emt 00:00:08]} Qc7 {[%clk 01:33:17]} {[%emt 00:00:10]} 8. Qf3 {[%clk
01:33:28]} {[%emt 00:00:20]} h6 {[%clk 01:33:13]} {[%emt 00:00:34]} 9. Bxf6
{[%clk 01:31:11]} {[%emt 00:02:47]} Nxf6 {[%clk 01:33:33]} {[%emt 00:00:09]} 10.
f5 {[%clk 01:31:12]} {[%emt 00:00:29]} Qc5 {[%clk 01:33:02]} {[%emt 00:01:01]}
11. O-O-O {[%clk 01:30:44]} {[%emt 00:00:58]} g5 {[%clk 01:32:28]} {[%emt
00:01:03]} 12. fxg6 {[%clk 01:26:46]} {[%emt 00:04:29]} Bg4 {[%clk 01:32:39]}
{[%emt 00:00:19]} 13. gxf7+ {[%clk 01:27:08]} {[%emt 00:00:09]} Kxf7 {[%clk
01:33:04]} {[%emt 00:00:05]} 14. Qd3 {[%clk 01:26:17]} {[%emt 00:01:20]} Bxd1
{[%clk 01:33:25]} {[%emt 00:00:10]} 15. Qxd1 {[%clk 01:25:03]} {[%emt
00:01:44]} Bg7 {[%clk 01:32:05]} {[%emt 00:01:49]} 16. e5 {[%clk 01:13:29]}
{[%emt 00:12:05]} dxe5 {[%clk 01:25:18]} {[%emt 00:07:17]} 17. Nb3 {[%clk
01:11:31]} {[%emt 00:02:29]} Qe3+ {[%clk 01:16:26]} {[%emt 00:09:22]} 18. Nd2
{[%clk 01:10:39]} {[%emt 00:01:22]} Rhd8 {[%clk 01:11:44]} {[%emt 00:05:12]} 19.
Bc4+ {[%clk 01:10:35]} {[%emt 00:00:33]} Ke8 {[%clk 00:56:33]} {[%emt
00:15:41]} 20. Re1 {[%clk 01:10:22]} {[%emt 00:00:42]} Qg5 {[%clk 00:54:35]}
{[%emt 00:02:28]} 21. Qe2 {[%clk 01:06:16]} {[%emt 00:04:36]} Rd4 {[%clk
00:46:47]} {[%emt 00:08:18]} 22. Bd3 {[%clk 01:02:03]} {[%emt 00:04:44]} Rad8
{[%clk 00:36:53]} {[%emt 00:10:24]} 23. Kb1 {[%clk 01:02:07]} {[%emt 00:00:26]}
Qg4 {[%clk 00:27:57]} {[%emt 00:09:27]} 24. Nf3 {[%clk 00:57:13]} {[%emt
00:05:24]} Rb4 {[%clk 00:21:11]} {[%emt 00:07:16]} 25. a3 {[%clk 00:56:54]}
{[%emt 00:00:49]} Rb6 {[%clk 00:21:02]} {[%emt 00:00:39]} 26. h3 {[%clk
00:52:29]} {[%emt 00:04:55]} Qe6 {[%clk 00:15:15]} {[%emt 00:06:16]} 27. Nxe5
{[%clk 00:52:04]} {[%emt 00:00:56]} Nd5 {[%clk 00:12:22]} {[%emt 00:03:23]} 28.
Qh5+ {[%clk 00:49:11]} {[%emt 00:03:23]} Kf8 {[%clk 00:12:04]} {[%emt
00:00:48]} 29. Nxd5 {[%clk 00:21:12]} {[%emt 00:28:29]} Rxd5 {[%clk 00:01:23]}
{[%emt 00:11:12]} 30. Qf3+ {[%clk 00:12:34]} {[%emt 00:09:07]} Kg8 {[%clk
00:01:34]} {[%emt 00:00:19]} 31. Bc4 {[%clk 00:12:58]} {[%emt 00:00:07]} Rxb2+
{[%clk 00:00:42]} {[%emt 00:01:22]} 32. Kxb2 {[%clk 00:12:03]} {[%emt
00:01:25]} Rb5+ {[%clk 00:00:35]} {[%emt 00:00:37]} 33. Ka2 {[%clk 00:12:08]}
{[%emt 00:00:24]} 1-0

[Event "MCR zen 2022"]
[Site "Hotel Opera, Jaroměřice nad Rokytnou, Czech Republic"]
[Date "????.??.??"]
[Round "1.3"]
[White "Koubova, Anna Marie"]
[Black "Petrova, Kristyna"]
[Result "1/2-1/2"]
[TimeControl "90 min/40 moves + 30 min + 30s/move"]
[WhiteElo "2115"]
[BlackElo "2264"]

1. d4 {[%clk 01:30:53]} {[%emt 00:00:06]} Nf6 {[%clk 01:30:54]} {[%emt
00:00:06]} 2. c4 {[%clk 01:31:11]} {[%emt 00:00:11]} g6 {[%clk 01:31:18]}
{[%emt 00:00:07]} 3. Nc3 {[%clk 01:31:18]} {[%emt 00:00:23]} d5 {[%clk
01:31:41]} {[%emt 00:00:07]} 4. cxd5 {[%clk 01:31:30]} {[%emt 00:00:18]} Nxd5
{[%clk 01:32:05]} {[%emt 00:00:06]} 5. e4 {[%clk 01:31:30]} {[%emt 00:00:30]}
Nxc3 {[%clk 01:32:29]} {[%emt 00:00:06]} 6. bxc3 {[%clk 01:31:51]} {[%emt
00:00:09]} Bg7 {[%clk 01:32:55]} {[%emt 00:00:04]} 7. Nf3 {[%clk 01:32:03]}
{[%emt 00:00:18]} O-O {[%clk 01:33:07]} {[%emt 00:00:19]} 8. Be2 {[%clk
01:31:01]} {[%emt 00:01:32]} c5 {[%clk 01:33:25]} {[%emt 00:00:12]} 9. O-O
{[%clk 01:30:53]} {[%emt 00:00:37]} Bg4 {[%clk 01:21:13]} {[%emt 00:12:42]} 10.
Be3 {[%clk 01:30:21]} {[%emt 00:01:02]} Qa5 {[%clk 01:10:32]} {[%emt 00:11:11]}
11. Rb1 {[%clk 00:57:35]} {[%emt 00:33:17]} cxd4 {[%clk 00:41:45]} {[%emt
00:29:16]} 12. cxd4 {[%clk 00:56:23]} {[%emt 00:01:42]} Qxa2 {[%clk 00:37:52]}
{[%emt 00:04:23]} 13. Rxb7 {[%clk 00:52:16]} {[%emt 00:04:38]} Nc6 {[%clk
00:25:13]} {[%emt 00:13:08]} 14. d5 {[%clk 00:49:12]} {[%emt 00:03:34]} Ne5
{[%clk 00:20:42]} {[%emt 00:05:01]} 15. Rxe7 {[%clk 00:47:02]} {[%emt
00:02:41]} a5 {[%clk 00:20:45]} {[%emt 00:00:27]} 16. Bd4 {[%clk 00:16:21]}
{[%emt 00:31:11]} Nxf3+ {[%clk 00:11:43]} {[%emt 00:09:32]} 17. Bxf3 {[%clk
00:16:39]} {[%emt 00:00:11]} Bxf3 {[%clk 00:11:46]} {[%emt 00:00:27]} 18. gxf3
{[%clk 00:17:01]} {[%emt 00:00:08]} Qa3 {[%clk 00:07:14]} {[%emt 00:05:02]} 19.
Bxg7 {[%clk 00:16:58]} {[%emt 00:00:33]} Qxe7 {[%clk 00:07:42]} {[%emt
00:00:03]} 20. Bxf8 {[%clk 00:17:13]} {[%emt 00:00:15]} Qg5+ {[%clk 00:07:38]}
{[%emt 00:00:34]} 21. Kh1 {[%clk 00:17:34]} {[%emt 00:00:08]} Rxf8 {[%clk
00:07:20]} {[%emt 00:00:49]} 22. Rg1 {[%clk 00:15:25]} {[%emt 00:02:39]} Qf4
{[%clk 00:07:33]} {[%emt 00:00:16]} 23. Qd3 {[%clk 00:10:42]} {[%emt 00:05:14]}
a4 {[%clk 00:06:02]} {[%emt 00:02:01]} 24. Ra1 {[%clk 00:09:38]} {[%emt
00:01:34]} Ra8 {[%clk 00:05:18]} {[%emt 00:01:15]} 25. Qe3 {[%clk 00:04:35]}
{[%emt 00:05:33]} Qe5 {[%clk 00:04:34]} {[%emt 00:01:13]} 26. Ra2 {[%clk
00:03:59]} {[%emt 00:01:07]} Qb8 {[%clk 00:03:37]} {[%emt 00:01:27]} 27. Ra3
{[%clk 00:03:53]} {[%emt 00:00:36]} Qb5 {[%clk 00:03:05]} {[%emt 00:01:02]} 28.
Kg2 {[%clk 00:03:20]} {[%emt 00:01:02]} Rc8 {[%clk 00:01:52]} {[%emt 00:01:43]}
29. Rc3 {[%clk 00:02:16]} {[%emt 00:01:35]} Rxc3 {[%clk 00:00:52]} {[%emt
00:01:31]} 30. Qxc3 {[%clk 00:02:41]} {[%emt 00:00:04]} h5 {[%clk 00:00:41]}
{[%emt 00:00:41]} 31. d6 {[%clk 00:00:51]} {[%emt 00:02:21]} Qg5+ {[%clk
00:00:47]} {[%emt 00:00:24]} 32. Kf1 {[%clk 00:00:47]} {[%emt 00:00:33]} Qb5+
{[%clk 00:01:00]} {[%emt 00:00:17]} 33. Ke1 {[%clk 00:01:02]} {[%emt 00:00:15]}
Kh7 {[%clk 00:00:40]} {[%emt 00:00:50]} 34. Kd2 {[%clk 00:00:45]} {[%emt
00:00:46]} h4 {[%clk 00:00:35]} {[%emt 00:00:36]} 35. Qf6 {[%clk 00:00:47]}
{[%emt 00:00:28]} Qb4+ {[%clk 00:00:47]} {[%emt 00:00:18]} 36. Ke3 {[%clk
00:00:42]} {[%emt 00:00:34]} Qe1+ {[%clk 00:00:53]} {[%emt 00:00:25]} 37. Kf4
{[%clk 00:00:54]} {[%emt 00:00:18]} Qc1+ {[%clk 00:01:06]} {[%emt 00:00:17]} 38.
Kg4 {[%clk 00:00:58]} {[%emt 00:00:25]} Qg1+ {[%clk 00:01:33]} {[%emt
00:00:04]} 39. Kh3 {[%clk 00:00:39]} {[%emt 00:00:49]} Qf1+ {[%clk 00:01:54]}
{[%emt 00:00:09]} 40. Kxh4 {[%clk 00:00:36]} {[%emt 00:00:34]} Qxf2+ {[%clk
00:02:07]} {[%emt 00:00:17]} 41. Kh3 {[%clk 00:19:15]} {[%emt 00:13:05]} Qf1+
{[%clk 00:32:54]} {[%emt 00:00:08]} 42. Kg3 {[%clk 00:13:13]} {[%emt 00:06:32]}
Qg1+ {[%clk 00:32:53]} {[%emt 00:00:30]} 43. Kf4 {[%clk 00:11:52]} {[%emt
00:01:51]} Qc1+ {[%clk 00:33:03]} {[%emt 00:00:20]} 44. Kg3 {[%clk 00:11:50]}
{[%emt 00:00:32]} Qg1+ {[%clk 00:33:27]} {[%emt 00:00:05]} 45. Kh3 {[%clk
00:11:34]} {[%emt 00:00:45]} Qf1+ {[%clk 00:33:51]} {[%emt 00:00:07]} 46. Kg3
{[%emt 00:00:51]} 1/2-1/2

[Event "MCR zen 2022"]
[Site "Hotel Opera, Jaroměřice nad Rokytnou, Czech Republic"]
[Date "????.??.??"]
[Round "1.4"]
[White "Trasakova, Adela"]
[Black "Nemcova, Karin"]
[Result "1/2-1/2"]
[TimeControl "90 min/40 moves + 30 min + 30s/move"]
[WhiteElo "1842"]
[BlackElo "2181"]

1. d4 {[%clk 01:30:58]} {[%emt 00:00:01]} Nf6 {[%clk 01:30:52]} {[%emt
00:00:08]} 2. Nf3 {[%clk 01:31:26]} {[%emt 00:00:01]} e6 {[%clk 01:31:13]}
{[%emt 00:00:09]} 3. g3 {[%clk 01:31:55]} {[%emt 00:00:02]} d5 {[%clk
01:31:24]} {[%emt 00:00:19]} 4. Bg2 {[%clk 01:32:23]} {[%emt 00:00:02]} c5
{[%clk 01:31:38]} {[%emt 00:00:17]} 5. O-O {[%clk 01:32:39]} {[%emt 00:00:13]}
Nc6 {[%clk 01:31:14]} {[%emt 00:00:55]} 6. c4 {[%clk 01:32:41]} {[%emt
00:00:28]} Be7 {[%clk 01:29:13]} {[%emt 00:02:31]} 7. Nc3 {[%clk 01:29:28]}
{[%emt 00:03:42]} O-O {[%clk 01:25:11]} {[%emt 00:04:32]} 8. cxd5 {[%clk
01:28:55]} {[%emt 00:01:03]} Nxd5 {[%clk 01:24:30]} {[%emt 00:01:12]} 9. Nxd5
{[%clk 01:27:02]} {[%emt 00:02:23]} Qxd5 {[%clk 01:23:48]} {[%emt 00:01:12]} 10.
Ne5 {[%clk 01:23:14]} {[%emt 00:04:17]} Qxd4 {[%clk 01:22:55]} {[%emt
00:01:23]} 11. Nxc6 {[%clk 01:21:08]} {[%emt 00:02:36]} bxc6 {[%clk 01:23:03]}
{[%emt 00:00:22]} 12. Bxc6 {[%clk 01:14:18]} {[%emt 00:07:20]} Rb8 {[%clk
01:23:05]} {[%emt 00:00:28]} 13. Qc2 {[%clk 01:11:13]} {[%emt 00:03:35]} Rd8
{[%clk 01:20:39]} {[%emt 00:02:56]} 14. Rb1 {[%clk 01:07:40]} {[%emt 00:04:03]}
Ba6 {[%clk 01:14:20]} {[%emt 00:06:48]} 15. b3 {[%clk 01:02:36]} {[%emt
00:05:34]} Rbc8 {[%clk 01:09:53]} {[%emt 00:04:57]} 16. Be3 {[%clk 00:57:58]}
{[%emt 00:05:08]} Qe5 {[%clk 01:04:24]} {[%emt 00:05:59]} 17. Bf3 {[%clk
00:55:28]} {[%emt 00:03:00]} Bg5 {[%clk 00:59:22]} {[%emt 00:05:31]} 18. Bxg5
{[%clk 00:53:03]} {[%emt 00:02:55]} Qxg5 {[%clk 00:59:51]} {[%emt 00:00:02]} 19.
Rfd1 {[%clk 00:51:32]} {[%emt 00:02:00]} g6 {[%clk 00:56:23]} {[%emt 00:03:58]}
20. Rxd8+ {[%clk 00:47:39]} {[%emt 00:04:24]} Rxd8 {[%clk 00:55:18]} {[%emt
00:01:35]} 21. Rd1 {[%clk 00:47:08]} {[%emt 00:01:00]} Rxd1+ {[%clk 00:52:36]}
{[%emt 00:03:12]} 22. Qxd1 {[%clk 00:47:36]} {[%emt 00:00:03]} c4 {[%clk
00:50:04]} {[%emt 00:03:02]} 23. bxc4 {[%clk 00:44:51]} {[%emt 00:03:15]} Bxc4
{[%clk 00:50:05]} {[%emt 00:00:29]} 24. Qc2 {[%clk 00:44:13]} {[%emt 00:01:08]}
Qc5 {[%clk 00:47:33]} {[%emt 00:03:02]} 25. Kg2 {[%clk 00:40:06]} {[%emt
00:04:38]} a5 {[%clk 00:46:54]} {[%emt 00:01:09]} 26. a3 {[%clk 00:32:41]}
{[%emt 00:07:55]} Qb5 {[%clk 00:45:17]} {[%emt 00:02:06]} 27. Qd2 {[%clk
00:31:17]} {[%emt 00:01:54]} e5 {[%clk 00:40:16]} {[%emt 00:05:31]} 28. Qd6
{[%clk 00:29:04]} {[%emt 00:02:43]} a4 {[%clk 00:33:27]} {[%emt 00:07:20]} 29.
Bc6 {[%clk 00:25:48]} {[%emt 00:03:45]} Qa5 {[%clk 00:33:31]} {[%emt 00:00:25]}
30. Bf3 {[%clk 00:23:06]} {[%emt 00:03:13]} Qc3 {[%clk 00:27:06]} {[%emt
00:06:54]} 1/2-1/2